bitfinex/quotes_BTCUSD_20220213
["timestamp","ask_amount","ask_price","bid_price","bid_amount"]
[1644764298970,0.06883558,42521.0,42517.0,0.6672412]
[1644764299572,0.01,42522.0,42517.0,0.6672412]
[1644764299771,0.01,42522.0,42520.0,0.19923595]
[1644764300170,0.01,42522.0,42521.0,0.058776]
[1644764300669,0.07566407,42522.0,42521.0,0.058776]
[1644764300919,0.07576407,42522.0,42521.0,0.058776]
[1644764301117,0.0101,42522.0,42521.0,0.25866141]
[1644764301316,0.01,42522.0,42521.0,0.058776]
[1644764302117,0.09336562,42522.0,42521.0,0.058776]
[1644764302317,0.09346562,42522.0,42521.0,0.058776]
[1644764304122,0.42514362,42522.0,42518.0,0.00049936]
[1644764304320,0.09346562,42522.0,42518.0,0.00049936]
[1644764304573,0.09336562,42522.0,42518.0,0.00049936]
[1644764304770,0.09346562,42522.0,42518.0,0.00049936]
[1644764304970,0.09336562,42522.0,42518.0,0.05929136]
[1644764305173,0.09336562,42522.0,42518.0,0.058792]
[1644764305370,0.09336562,42522.0,42518.0,0.05929135]
[1644764306371,0.09336562,42522.0,42518.0,0.058792]
[1644764306570,0.09336562,42522.0,42518.0,0.05926519]
[1644764307572,0.09336562,42522.0,42518.0,0.058792]
[1644764307775,0.09336562,42522.0,42518.0,0.05926519]
[1644764308816,0.09336562,42522.0,42518.0,0.058792]
[1644764309118,0.09336562,42522.0,42518.0,0.05926519]
[1644764309918,0.09336562,42522.0,42518.0,0.058792]
[1644764310118,0.09336562,42522.0,42518.0,0.2590083]
[1644764310324,0.01,42522.0,42521.0,0.05]
[1644764310520,0.01,42522.0,42519.0,0.05]
[1644764310718,0.01,42522.0,42520.0,0.11756]
[1644764310918,0.01,42522.0,42520.0,0.11256]
[1644764311317,0.01,42522.0,42521.0,0.05]
[1644764311522,0.01,42522.0,42521.0,0.24988541]
[1644764311718,0.01,42522.0,42521.0,0.05]
[1644764312973,0.08792861,42522.0,42521.0,0.05]
[1644764313169,0.08792861,42522.0,42521.0,0.108779]
[1644764315271,0.08079782,42529.0,42521.0,0.108779]
[1644764315476,0.23822172,42530.0,42521.0,0.108779]
[1644764315915,0.19500227,42521.0,42520.0,0.31244541]
[1644764316716,0.19500227,42521.0,42520.0,0.11256]
[1644764317815,0.2611136,42521.0,42520.0,0.11256]
[1644764319670,0.21811949,42523.0,42522.0,0.40604263]
[1644764319871,0.21811949,42523.0,42522.0,0.46482963]
[1644764320973,0.30239822,42523.0,42522.0,0.46482963]
[1644764321374,0.30239822,42523.0,42522.0,0.40604263]
[1644764322774,0.31239822,42523.0,42522.0,0.40604263]
[1644764322979,0.01,42523.0,42522.0,0.46482963]
[1644764323420,0.01,42523.0,42522.0,0.74282584]
[1644764323616,0.01,42523.0,42522.0,0.73282584]
[1644764323817,0.01,42523.0,42522.0,0.46482963]
[1644764327467,0.234399,42523.0,42522.0,0.40604263]
[1644764328068,0.01,42523.0,42522.0,0.40604263]
[1644764330826,0.01,42523.0,42522.0,0.41604263]
[1644764331318,0.01,42523.0,42522.0,0.66508757]
[1644764332517,0.01,42523.0,42522.0,0.65508757]
[1644764332819,0.01,42523.0,42522.0,0.60600038]
[1644764333017,0.01,42523.0,42522.0,0.40604263]
[1644764335168,0.01,42523.0,42522.0,0.65508757]
[1644764335468,0.01,42523.0,42522.0,0.40604263]
[1644764336867,0.02,42523.0,42522.0,0.40604263]
[1644764337867,0.02,42523.0,42522.0,0.65508757]
[1644764339120,0.02,42523.0,42522.0,0.40604263]
[1644764339821,0.07145696,42527.0,42526.0,0.03728796]
[1644764340020,0.07145696,42527.0,42526.0,0.09606196]
[1644764340619,0.07145696,42527.0,42526.0,0.03728796]
[1644764343173,0.07145696,42527.0,42526.0,0.29601163]
[1644764343174,0.08145696,42527.0,42526.0,0.29601163]
[1644764343377,0.08145696,42527.0,42526.0,0.09606696]
[1644764343674,0.08145696,42527.0,42526.0,0.34598787]
[1644764345075,0.08155696,42527.0,42526.0,0.34598787]
[1644764345275,0.08155696,42527.0,42526.0,0.09606696]
[1644764345276,0.08648036,42527.0,42526.0,0.09606696]
[1644764345918,0.08648036,42527.0,42526.0,0.34598787]
[1644764346214,0.08648036,42527.0,42526.0,0.09606696]
[1644764347217,0.1,42534.0,42526.0,0.34598787]
[1644764347420,0.1,42534.0,42530.0,0.25874646]
[1644764347619,0.1,42534.0,42531.0,0.19997746]
[1644764348218,0.1,42534.0,42530.0,0.19997746]
[1644764348418,0.083197,42533.0,42531.0,0.19997746]
[1644764348620,0.083197,42533.0,42532.0,0.11754]
[1644764350263,0.093197,42533.0,42532.0,0.31751746]
[1644764350463,0.093297,42533.0,42532.0,0.05877]
[1644764354324,0.0101,42533.0,42532.0,0.41877]
[1644764354521,0.0101,42533.0,42532.0,0.71762393]
[1644764354719,0.1,42534.0,42532.0,1.0176159]
[1644764354919,0.1,42534.0,42533.0,0.80017073]
[1644764355118,0.1,42534.0,42532.0,0.41743292]
[1644764355318,0.1,42534.0,42532.0,0.40743292]
[1644764355523,0.0011731,42536.0,42533.0,0.2498139]
[1644764355724,0.0021,42540.0,42536.0,0.058762]
[1644764355725,0.001,42540.0,42536.0,0.058762]
[1644764355925,0.00183617,42542.0,42540.0,0.00139366]
[1644764356124,0.00183617,42542.0,42540.0,0.85112512]
[1644764356324,0.00183617,42542.0,42540.0,0.00139366]
[1644764356522,0.07374851,42541.0,42540.0,0.00139366]
[1644764356721,0.07374851,42541.0,42540.0,0.20122116]
[1644764357081,0.0016412,42541.0,42540.0,0.20122116]
[1644764357269,0.0016412,42541.0,42540.0,0.20121845]
[1644764357472,0.0016412,42541.0,42540.0,0.00139366]
[1644764357670,0.0016412,42541.0,42540.0,0.2012221]
[1644764358171,0.06991229,42541.0,42540.0,0.00139366]
[1644764358576,0.37365681,42541.0,42540.0,0.00139366]
[1644764358773,0.06991229,42541.0,42540.0,0.00139366]
[1644764359372,0.06784322,42541.0,42540.0,0.00139366]
[1644764359578,0.07784322,42541.0,42540.0,0.00139366]
[1644764359973,0.07794322,42541.0,42540.0,0.00139366]
[1644764360928,1.70562122,42541.0,42540.0,0.00139366]
[1644764361127,1.37394322,42541.0,42540.0,0.00139366]
[1644764361327,0.07794322,42541.0,42540.0,0.00139366]
[1644764365767,0.01303093,42541.0,42540.0,0.00139366]
[1644764365968,0.00082161,42543.0,42542.0,0.058758]
[1644764366467,0.09778537,42545.0,42542.0,0.058758]
[1644764366668,0.09827399,42545.0,42542.0,0.058758]
[1644764367377,0.09827399,42545.0,42544.0,0.01]
[1644764367571,0.09827399,42545.0,42544.0,0.20982844]
[1644764367768,0.09778537,42545.0,42544.0,0.01]
[1644764368517,0.09278537,42545.0,42542.0,0.068758]
[1644764368719,0.09278537,42545.0,42542.0,0.168758]
[1644764369120,0.09278537,42545.0,42543.0,0.3]
[1644764369318,0.09278537,42545.0,42543.0,2.75250213]
[1644764369518,0.09278537,42545.0,42543.0,2.80250213]
[1644764369719,0.09278537,42545.0,42543.0,2.90382697]
[1644764370117,0.09278537,42545.0,42543.0,0.15132484]
[1644764370918,0.09278537,42545.0,42543.0,0.00132484]
[1644764371518,0.0001,42544.0,42543.0,0.00132484]
[1644764372572,0.00076596,42544.0,42543.0,0.00132484]
[1644764373567,0.00076596,42544.0,42543.0,0.27697199]
[1644764373769,0.00076596,42544.0,42543.0,0.00132484]
[1644764374366,0.00076596,42544.0,42543.0,0.27204473]
[1644764374568,0.00076596,42544.0,42543.0,0.00132484]
[1644764375368,0.06,42559.0,42557.0,0.07287876]
[1644764376619,0.055,42559.0,42557.0,0.07287876]
[1644764377721,0.005,42559.0,42557.0,0.07287876]
[1644764377918,0.31995169,42561.0,42557.0,0.07287876]
[1644764378119,0.045,42559.0,42557.0,0.07287876]
[1644764379319,0.045,42559.0,42557.0,0.19171856]
[1644764379587,0.045,42559.0,42557.0,0.18171856]
[1644764380186,0.00049766,42560.0,42558.0,0.05875]
[1644764380393,0.04549766,42560.0,42558.0,0.05875]
[1644764380784,0.00049766,42560.0,42558.0,0.05875]
[1644764380987,0.0011,42561.0,42558.0,0.05875]
[1644764381188,0.00159765,42561.0,42558.0,0.05875]
[1644764381586,0.00159765,42561.0,42560.0,0.005]
[1644764381786,0.00159765,42561.0,42558.0,0.05875]
[1644764381988,0.00159765,42561.0,42559.0,0.01]
[1644764382187,0.0011,42561.0,42558.0,0.05875]
[1644764382387,0.0011,42561.0,42560.0,0.005]
[1644764382786,0.0011,42561.0,42558.0,0.06375]
[1644764383322,0.0011,42561.0,42560.0,0.01]
[1644764383524,0.0011,42561.0,42559.0,0.01]
[1644764383722,0.0011,42561.0,42558.0,0.06375]
[1644764384525,0.0011,42561.0,42558.0,0.05875]
[1644764385124,0.0011,42561.0,42558.0,0.04875]
[1644764385731,0.0011,42561.0,42560.0,0.015]
[1644764386128,0.0011,42561.0,42560.0,0.005]
[1644764388571,0.0011,42561.0,42558.0,0.04875]
[1644764388779,0.045,42560.0,42558.0,0.04875]
[1644764388971,0.0011,42561.0,42558.0,0.04875]
[1644764389972,0.25845243,42562.0,42558.0,0.04875]
[1644764390172,0.08203892,42562.0,42558.0,0.04875]
[1644764390674,0.08154127,42562.0,42558.0,0.04875]
[1644764390921,0.08178644,42562.0,42558.0,0.04875]
[1644764392116,0.08224973,42562.0,42558.0,0.04875]
[1644764392917,0.08178644,42562.0,42558.0,0.04875]
[1644764393217,0.08224973,42562.0,42558.0,0.04875]
[1644764394023,0.08224973,42562.0,42561.0,0.005]
[1644764394024,0.00188706,42562.0,42561.0,0.005]
[1644764394219,0.0011786,42562.0,42561.0,0.06373]
[1644764394418,0.0011786,42562.0,42561.0,0.33587997]
[1644764394419,0.00163677,42562.0,42561.0,0.33587997]
[1644764394684,0.00163677,42562.0,42561.0,0.06373]
[1644764395087,0.00134517,42563.0,42562.0,0.00327354]
[1644764395285,0.0011,42563.0,42562.0,0.00327354]
[1644764396490,0.0041,42565.0,42562.0,0.00327354]
[1644764396691,0.00070573,42566.0,42562.0,0.00327354]
[1644764396889,0.00016456,42565.0,42563.0,0.058734]
[1644764397695,0.00070573,42566.0,42563.0,0.058734]
[1644764398093,0.00120337,42566.0,42563.0,0.058734]
[1644764398326,1.291,42564.0,42562.0,0.00327354]
[1644764398522,0.0001,42563.0,42562.0,0.00327354]
[1644764398721,0.00120337,42566.0,42562.0,0.00327354]
[1644764398925,0.00070573,42566.0,42562.0,0.00327354]
[1644764399120,0.18660464,42563.0,42562.0,0.00327354]
[1644764399320,0.18670464,42563.0,42562.0,0.00327354]
[1644764400320,1.43270464,42563.0,42562.0,0.00327354]
[1644764400523,0.00327,42562.0,42552.0,0.117497]
[1644764400729,0.045,42554.0,42548.0,0.117506]
[1644764401023,1.291,42554.0,42543.0,0.3]
[1644764401222,0.0001,42553.0,42543.0,0.3]
[1644764401625,0.24074432,42550.0,42546.0,0.058762]
[1644764401824,0.00024521,42554.0,42546.0,0.058762]
[1644764402075,0.08896569,42553.0,42546.0,0.058762]
[1644764402270,0.08896569,42553.0,42550.0,0.00040423]
[1644764402671,0.08896569,42553.0,42546.0,0.058757]
[1644764402869,0.21128386,42550.0,42549.0,0.00033355]
[1644764403870,0.21128386,42550.0,42541.0,0.3435093]
[1644764404075,0.21128386,42550.0,42547.0,0.00033357]
[1644764404271,0.29947774,42552.0,42547.0,0.00033357]
[1644764404272,0.00024521,42554.0,42547.0,0.05909057]
[1644764404475,0.15,42564.0,42547.0,0.05909057]
[1644764404476,0.00024521,42561.0,42553.0,0.005]
[1644764404671,0.00060573,42566.0,42549.0,0.19982844]
[1644764404672,0.00024521,42554.0,42549.0,0.19982844]
[1644764404869,0.00024521,42565.0,42549.0,0.20482844]
[1644764405070,0.00085094,42566.0,42551.0,0.005]
[1644764405271,0.19264001,42561.0,42551.0,0.06374]
[1644764405472,0.00085094,42566.0,42565.0,0.07915724]
[1644764405671,1.74380859,42566.0,42565.0,0.07915724]
[1644764405921,0.49780859,42566.0,42565.0,0.07915724]
[1644764406129,1.74380859,42566.0,42565.0,0.07915724]
[1644764406925,1.74380859,42566.0,42565.0,0.07956147]
[1644764407424,1.91931948,42566.0,42565.0,0.07956147]
[1644764407925,1.67911274,42566.0,42565.0,0.07956147]
[1644764408524,1.67411274,42566.0,42565.0,0.07956147]
[1644764409125,1.67411274,42566.0,42565.0,0.28641515]
[1644764409573,1.57411274,42566.0,42565.0,0.28641515]
[1644764409869,1.80411274,42566.0,42565.0,0.28641515]
[1644764410068,2.03489568,42566.0,42565.0,0.28641515]
[1644764410470,1.80411274,42566.0,42565.0,0.28641515]
[1644764410772,2.13579074,42566.0,42565.0,0.28641515]
[1644764410969,1.80411274,42566.0,42565.0,0.28641515]
[1644764411372,2.04544544,42566.0,42565.0,0.28641515]
[1644764411770,2.14544544,42566.0,42565.0,0.28641515]
[1644764411974,2.04544544,42566.0,42565.0,0.28641515]
[1644764412170,2.47712344,42566.0,42565.0,0.28641515]
[1644764412572,2.14544544,42566.0,42565.0,0.28641515]
[1644764412770,2.47712344,42566.0,42565.0,0.28641515]
[1644764413171,1.246,42564.0,42557.0,0.00047185]
[1644764413421,1.246,42563.0,42554.0,0.058748]
[1644764413621,0.25236454,42555.0,42554.0,0.058748]
[1644764414122,0.25236454,42555.0,42553.0,0.005]
[1644764414323,0.07626979,42554.0,42553.0,0.005]
[1644764414728,0.07626979,42554.0,42551.0,0.19982844]
[1644764414927,0.07626979,42554.0,42551.0,0.00047186]
[1644764415927,0.07626979,42554.0,42549.0,0.20482844]
[1644764416128,0.07626979,42554.0,42550.0,0.00045716]
[1644764416835,1.577678,42552.0,42547.0,7.19514886]
[1644764417087,1.577678,42552.0,42547.0,6.99536574]
[1644764417277,1.677678,42552.0,42547.0,6.99536574]
[1644764417476,0.331678,42551.0,42547.0,6.99536574]
[1644764417676,0.20364217,42548.0,42547.0,6.99536574]
[1644764419175,0.53532017,42548.0,42547.0,6.99536574]
[1644764419682,1.78132017,42548.0,42547.0,6.99536574]
[1644764421128,1.83132017,42548.0,42547.0,6.73381816]
[1644764421326,1.93132017,42548.0,42547.0,6.73381816]
[1644764422235,1.246,42546.0,42545.0,3.07e-06]
[1644764422430,1.246,42546.0,42540.0,0.05139366]
[1644764422431,1.246,42544.0,42540.0,3.66e-06]
[1644764422629,1.381678,42545.0,42540.0,3.66e-06]
[1644764422630,1.577678,42541.0,42540.0,3.66e-06]
[1644764422827,1.777678,42541.0,42540.0,3.66e-06]
[1644764423227,1.246,42541.0,42540.0,3.66e-06]
[1644764423429,1.827678,42541.0,42540.0,3.66e-06]
[1644764424578,0.331616,42541.0,42540.0,3.66e-06]
[1644764424778,1.577616,42541.0,42540.0,3.66e-06]
[1644764424978,1.246,42541.0,42540.0,3.66e-06]
[1644764425174,1.577616,42541.0,42540.0,3.66e-06]
[1644764426173,1.857616,42541.0,42540.0,3.66e-06]
[1644764426375,1.957616,42541.0,42540.0,3.66e-06]
[1644764426674,1.626,42541.0,42540.0,3.66e-06]
[1644764427073,1.957616,42541.0,42540.0,3.66e-06]
[1644764428331,2.197616,42541.0,42540.0,3.66e-06]
[1644764428531,2.207616,42541.0,42540.0,3.66e-06]
[1644764429129,2.42024981,42541.0,42540.0,3.66e-06]
[1644764430330,2.207616,42541.0,42540.0,3.66e-06]
[1644764430530,1.246,42539.0,42538.0,0.00045043]
[1644764430730,1.736399,42539.0,42538.0,0.00045043]
[1644764430929,1.836399,42539.0,42538.0,0.00045043]
[1644764431531,1.246,42537.0,42526.0,0.03728796]
[1644764431833,1.736398,42537.0,42536.0,0.00042294]
[1644764432477,1.246,42539.0,42536.0,0.00042294]
[1644764432674,1.246,42539.0,42533.0,0.07277605]
[1644764432675,1.256,42539.0,42534.0,0.22881322]
[1644764432871,0.01,42539.0,42534.0,0.00042295]
[1644764433174,0.331616,42538.0,42534.0,0.00042295]
[1644764433571,0.01,42539.0,42534.0,0.00042295]
[1644764433772,0.068776,42539.0,42532.0,0.05]
[1644764433974,0.331616,42538.0,42532.0,0.05]
[1644764434172,0.331616,42538.0,42534.0,0.00042295]
[1644764434472,0.068776,42539.0,42534.0,0.00042295]
[1644764434671,1.246,42538.0,42534.0,0.00042295]
[1644764434871,0.331616,42537.0,42534.0,0.00042295]
[1644764435079,0.331616,42537.0,42526.0,0.24698371]
[1644764435080,1.246,42538.0,42528.0,0.058777]
[1644764435274,1.246,42538.0,42534.0,0.00042671]
[1644764435473,0.71243034,42538.0,42534.0,0.00042671]
[1644764435674,0.331616,42537.0,42534.0,0.00042671]
[1644764435925,1.246,42538.0,42534.0,0.00042671]
[1644764435926,0.058778,42538.0,42534.0,0.00042671]
[1644764436124,0.331616,42535.0,42534.0,0.00042671]
[1644764436326,0.331616,42535.0,42528.0,0.058777]
[1644764436526,0.058778,42538.0,42534.0,0.00042671]
[1644764436727,0.331616,42537.0,42534.0,0.00042671]
[1644764436927,1.246,42537.0,42534.0,0.00042671]
[1644764437528,1.246,42535.0,42533.0,0.05]
[1644764437837,1.246,42535.0,42533.0,0.05042671]
[1644764438130,1.577616,42534.0,42533.0,0.00042671]
[1644764438628,1.246,42534.0,42527.0,0.05]
[1644764438830,1.246,42534.0,42531.0,0.00042616]
[1644764439772,1.577616,42533.0,42526.0,0.09606796]
[1644764439974,1.246,42533.0,42530.0,0.00042617]
[1644764440573,1.246,42531.0,42530.0,0.00042617]
[1644764440773,0.331616,42531.0,42530.0,0.00042617]
[1644764440976,0.331616,42531.0,42526.0,0.03728796]
[1644764441173,0.331616,42530.0,42528.0,0.00042618]
[1644764441575,0.1,42531.0,42528.0,0.05042618]
[1644764441773,0.1,42531.0,42528.0,0.00042618]
[1644764442174,1.256,42533.0,42528.0,0.05]
[1644764442375,1.356,42533.0,42528.0,0.05]
[1644764442572,1.356,42533.0,42528.0,0.045]
[1644764443627,1.256,42533.0,42528.0,0.04542627]
[1644764443832,1.256,42533.0,42528.0,0.00042627]
[1644764443833,1.577616,42530.0,42528.0,0.00042627]
[1644764444328,1.346,42530.0,42528.0,0.00042627]
[1644764444527,0.331616,42529.0,42528.0,0.00042627]
[1644764444728,0.331616,42529.0,42520.0,0.19969575]
[1644764444931,0.34163223,42530.0,42527.0,0.00042628]
[1644764445132,0.331616,42529.0,42527.0,0.00042628]
[1644764445329,0.34163223,42530.0,42527.0,0.00042628]
[1644764445330,0.24163223,42530.0,42527.0,0.00042628]
[1644764445732,0.01,42530.0,42527.0,0.00042628]
[1644764445935,0.331616,42529.0,42524.0,0.045]
[1644764446132,0.01,42530.0,42526.0,0.04542627]
[1644764446334,0.01,42530.0,42526.0,0.00042627]
[1644764446532,0.01,42530.0,42526.0,0.04542627]
[1644764446533,0.331616,42529.0,42526.0,0.04542627]
[1644764446732,0.01,42530.0,42526.0,0.04542627]
[1644764447173,0.01,42530.0,42526.0,0.04542628]
[1644764447776,0.01,42530.0,42527.0,0.331616]
[1644764447980,0.01,42530.0,42529.0,0.045]
[1644764448377,0.01,42530.0,42529.0,0.12775168]
[1644764448579,0.341616,42530.0,42526.0,0.24365518]
[1644764448777,0.01,42530.0,42526.0,0.19865518]
[1644764448978,0.01,42530.0,42529.0,0.045]
[1644764449179,1.486,42530.0,42529.0,0.103776]
[1644764449379,1.486,42530.0,42522.0,0.3]
[1644764449380,1.817616,42530.0,42522.0,0.3]
[1644764449579,1.486,42530.0,42526.0,0.045]
[1644764449781,0.24,42530.0,42528.0,0.331616]
[1644764449983,0.24,42530.0,42529.0,0.045]
[1644764450382,0.24,42530.0,42529.0,0.113775]
[1644764450828,0.24,42530.0,42529.0,0.445391]
[1644764452026,0.24,42530.0,42529.0,0.71815683]
[1644764452329,0.24,42530.0,42529.0,0.91785258]
[1644764453026,0.24,42530.0,42529.0,0.71815683]
[1644764453230,0.24,42530.0,42529.0,0.96792299]
[1644764453828,0.01,42533.0,42530.0,0.22741511]
[1644764454029,0.01,42533.0,42532.0,0.24467343]
[1644764454230,0.01,42533.0,42532.0,0.44157324]
[1644764454430,0.01,42533.0,42532.0,0.39657324]
[1644764454879,0.01,42533.0,42532.0,0.44157324]
[1644764455477,0.01,42533.0,42532.0,0.64124667]
[1644764455679,0.01,42533.0,42532.0,0.44157324]
[1644764456178,0.01,42533.0,42532.0,0.10995724]
[1644764456379,0.01,42533.0,42532.0,0.045]
[1644764456781,0.01,42533.0,42532.0,0.24476601]
[1644764456977,0.01,42533.0,42532.0,0.376616]
[1644764457382,0.02,42533.0,42532.0,0.376616]
[1644764457681,0.02,42533.0,42532.0,0.64858139]
[1644764457978,0.02,42533.0,42532.0,0.72212625]
[1644764458179,0.02,42533.0,42532.0,0.72435948]
[1644764458824,0.02,42533.0,42532.0,0.45016086]
[1644764459022,0.02,42533.0,42532.0,0.72125657]
[1644764459224,0.02,42533.0,42532.0,0.376616]
[1644764459424,0.02,42533.0,42532.0,0.045]
[1644764459624,0.02,42533.0,42532.0,0.376616]
[1644764460029,0.02,42533.0,42532.0,0.62639754]
[1644764460227,0.02,42533.0,42532.0,0.44857751]
[1644764460426,0.25,42533.0,42532.0,0.44857751]
[1644764460827,0.01,42539.0,42537.0,0.37657377]
[1644764461027,0.01,42539.0,42538.0,0.331616]
[1644764461230,0.01,42539.0,42538.0,0.045]
[1644764464279,0.01,42539.0,42538.0,0.19987414]
[1644764465577,0.73249558,42544.0,42539.0,0.0685228]
[1644764465827,0.058771,42545.0,42538.0,0.19987414]
[1644764466028,0.331616,42544.0,42538.0,0.19987414]
[1644764466227,1.346,42548.0,42537.0,0.56267991]
[1644764466433,1.346,42548.0,42539.0,0.00047188]
[1644764466434,0.331616,42545.0,42539.0,0.00047188]
[1644764466628,0.331616,42544.0,42539.0,0.00047188]
[1644764466828,0.51770347,42544.0,42539.0,0.00047188]
[1644764467428,0.51770347,42544.0,42537.0,0.56267991]
[1644764467629,0.18608747,42544.0,42539.0,0.00045523]
[1644764467830,0.331616,42542.0,42539.0,0.00045523]
[1644764468031,0.390388,42543.0,42539.0,0.00045523]
[1644764468231,0.058772,42543.0,42539.0,0.00045523]
[1644764468634,0.331616,42542.0,42537.0,0.56267991]
[1644764468833,0.058772,42543.0,42539.0,0.00045523]
[1644764469036,0.331616,42542.0,42539.0,0.00045523]
[1644764469674,0.058772,42543.0,42539.0,0.00045523]
[1644764469874,0.058772,42543.0,42538.0,0.07971589]
[1644764470076,0.058772,42543.0,42539.0,0.00045523]
[1644764470975,0.058772,42543.0,42541.0,0.045]
[1644764471380,0.23,42543.0,42542.0,0.53149014]
[1644764471584,0.23,42543.0,42542.0,0.341616]
[1644764471876,0.23,42543.0,42542.0,0.59145868]
[1644764472273,0.23,42543.0,42542.0,0.341616]
[1644764472473,0.23,42543.0,42542.0,0.400375]
[1644764473077,0.23,42543.0,42542.0,0.26861241]
[1644764473534,0.23,42543.0,42542.0,0.058759]
[1644764473734,0.23,42543.0,42542.0,0.25861241]
[1644764473940,0.23,42543.0,42542.0,0.19985341]
[1644764474336,0.23,42543.0,42542.0,0.53146941]
[1644764474533,0.23,42543.0,42542.0,0.19985341]
[1644764475136,0.23,42543.0,42541.0,0.045]
[1644764476335,0.24,42543.0,42542.0,0.058762]
[1644764476748,0.24,42543.0,42540.0,0.20034866]
[1644764476940,0.23,42543.0,42540.0,0.00049525]
[1644764477182,0.23,42543.0,42539.0,0.19985341]
[1644764477380,0.23,42543.0,42539.0,0.20034866]
[1644764477582,0.23,42543.0,42540.0,0.058764]
[1644764478383,0.23,42543.0,42541.0,0.376616]
[1644764478583,0.23,42543.0,42542.0,0.390376]
[1644764478782,0.23,42543.0,42542.0,0.05876]
[1644764479783,0.23,42543.0,42541.0,0.058764]
[1644764482126,0.23,42543.0,42542.0,0.055]
[1644764482526,0.23,42543.0,42542.0,0.01]
[1644764482727,0.23,42543.0,42542.0,0.055]
[1644764483727,0.23,42543.0,42542.0,0.386616]
[1644764483925,0.23,42543.0,42542.0,0.055]
[1644764484585,0.23,42543.0,42541.0,0.058764]
[1644764484774,0.23,42543.0,42542.0,0.055]
[1644764485374,0.23,42543.0,42542.0,0.331616]
[1644764486376,0.23,42543.0,42542.0,0.386616]
[1644764486774,0.23,42543.0,42542.0,0.055]
[1644764486974,0.23,42543.0,42542.0,0.045]
[1644764487280,0.23,42543.0,42541.0,0.058764]
[1644764487475,0.23,42543.0,42542.0,0.331616]
[1644764487975,0.23,42543.0,42542.0,0.01]
[1644764489426,0.23,42543.0,42542.0,0.341616]
[1644764489629,0.23,42543.0,42542.0,0.01]
[1644764490628,0.23,42543.0,42541.0,0.058764]
[1644764490830,0.23,42543.0,42540.0,0.20034907]
[1644764491031,0.23,42543.0,42541.0,0.331616]
[1644764491230,0.23,42543.0,42541.0,0.055]
[1644764492080,0.23,42543.0,42542.0,0.058761]
[1644764492479,0.23,42543.0,42542.0,0.25861441]
[1644764492876,0.23,42543.0,42542.0,0.058761]
[1644764493074,0.23,42543.0,42542.0,0.390377]
[1644764493274,0.23,42543.0,42542.0,0.25861441]
[1644764493475,0.23,42543.0,42542.0,0.53146941]
[1644764494276,0.23,42543.0,42541.0,0.36357283]
[1644764494575,0.23,42543.0,42542.0,0.331616]
[1644764494977,0.23,42543.0,42542.0,0.82122019]
[1644764495183,0.01940171,42552.0,42549.0,0.22451366]
[1644764495377,0.01940171,42552.0,42550.0,0.07284223]
[1644764495578,0.331616,42557.0,42556.0,0.15147109]
[1644764496734,0.43167707,42557.0,42556.0,0.15147109]
[1644764497030,0.431616,42557.0,42556.0,0.15147109]
[1644764498031,0.70225644,42557.0,42556.0,0.15147109]
[1644764498238,1.94825644,42557.0,42556.0,0.15147109]
[1644764498633,2.19614298,42557.0,42556.0,0.15147109]
[1644764498833,2.24614298,42557.0,42556.0,0.15141002]
[1644764499033,2.47203281,42557.0,42556.0,0.15141002]
[1644764499586,0.550376,42557.0,42556.0,0.15141002]
[1644764499985,0.74890469,42557.0,42556.0,0.15141002]
[1644764500184,0.69890469,42557.0,42556.0,0.15141002]
[1644764500387,0.69891171,42557.0,42556.0,0.15141002]
[1644764500984,1.94489912,42557.0,42556.0,0.15141002]
[1644764504329,1.746376,42557.0,42556.0,0.15141002]
[1644764504528,1.94490909,42557.0,42556.0,0.15141002]
[1644764504728,1.746376,42557.0,42556.0,0.15141002]
[1644764504927,1.9449093,42557.0,42556.0,0.15141002]
[1644764505226,1.746376,42557.0,42556.0,0.15141002]
[1644764505631,1.94490487,42557.0,42556.0,0.15141002]
[1644764505828,2.17490487,42557.0,42556.0,0.15141002]
[1644764507180,1.976376,42557.0,42556.0,0.15141002]
[1644764508983,2.1749087,42557.0,42556.0,0.15141002]
[1644764509183,2.17490758,42557.0,42556.0,0.15141002]
[1644764511127,1.976376,42557.0,42556.0,0.15141002]
[1644764512328,0.92891921,42557.0,42556.0,0.15141002]
[1644764513530,0.87015921,42557.0,42556.0,0.15141002]
[1644764513931,0.571616,42557.0,42556.0,0.15141002]
[1644764515581,1.922616,42557.0,42556.0,0.15141002]
[1644764515884,2.22101973,42557.0,42556.0,0.15141002]
[1644764516078,2.21601973,42557.0,42556.0,0.15141002]
[1644764516880,0.97001973,42557.0,42556.0,0.15141002]
[1644764517278,2.21601973,42557.0,42556.0,0.15141002]
[1644764517879,2.11601973,42557.0,42556.0,0.15141002]
[1644764518079,2.12601973,42557.0,42556.0,0.15141002]
[1644764518328,1.927616,42557.0,42556.0,0.15141002]
[1644764519329,2.12601973,42557.0,42556.0,0.15141002]
[1644764519531,2.13104486,42557.0,42556.0,0.15141002]
[1644764519728,1.79442886,42557.0,42556.0,0.15129674]
[1644764519929,0.54842886,42557.0,42556.0,0.15129674]
[1644764521134,1.79442886,42557.0,42556.0,0.15129674]
[1644764521332,1.79942886,42557.0,42556.0,0.15129674]
[1644764521729,1.79442886,42557.0,42556.0,0.15129674]
[1644764522180,1.596,42557.0,42556.0,0.15129674]
[1644764522579,1.79442991,42557.0,42556.0,0.15129674]
[1644764524676,1.78442991,42557.0,42556.0,0.15129674]
[1644764525681,2.11604591,42557.0,42556.0,0.15129674]
[1644764525926,1.922616,42557.0,42556.0,0.15129674]
[1644764526523,1.917616,42557.0,42556.0,0.15129674]
[1644764527125,1.581,42557.0,42556.0,0.15129674]
[1644764527728,1.912616,42557.0,42556.0,0.15129674]
[1644764527927,1.581,42557.0,42556.0,0.15129674]
[1644764528127,1.57959,42557.0,42556.0,0.15129674]
[1644764529127,1.77821989,42557.0,42556.0,0.15129674]
[1644764529328,1.911206,42557.0,42556.0,0.15129674]
[1644764529586,1.57959,42557.0,42556.0,0.15129674]
[1644764529776,1.911206,42557.0,42556.0,0.15129674]